[Event "Early-Titled-Tuesday-Blitz-March-12-2024"]
[Site "Chess.com"]
[Date "2024.03.12"]
[Round "4"]
[White "PIwan"]
[Black "xakevicius91"]
[Result "1-0"]
[WhiteElo "2423"]
[BlackElo "2554"]
[TimeControl "180+1"]
[EndTime "8:39:34 PDT"]
[Termination "PIwan won by resignation"]

1. c4 {[%clk 0:03:00.4]} 1... Nf6 {[%clk 0:02:58.5]} 2. Nc3 {[%clk 0:03:00.7]}
2... c5 {[%clk 0:02:56.4]} 3. Nf3 {[%clk 0:03:00.5]} 3... b6 {[%clk 0:02:56.3]}
4. e3 {[%clk 0:03:00.7]} 4... Bb7 {[%clk 0:02:56.4]} 5. d4 {[%clk 0:03:01.1]}
5... e6 {[%clk 0:02:57.1]} 6. d5 {[%clk 0:03:00.9]} 6... exd5 {[%clk 0:02:58]}
7. cxd5 {[%clk 0:03:01.7]} 7... d6 {[%clk 0:02:58.3]} 8. e4 {[%clk 0:03:02.1]}
8... Nbd7 {[%clk 0:02:58.4]} 9. Bd3 {[%clk 0:03:01.1]} 9... g6 {[%clk
0:02:58.7]} 10. O-O {[%clk 0:03:00.4]} 10... Bg7 {[%clk 0:02:59.3]} 11. h3
{[%clk 0:02:59.8]} 11... O-O {[%clk 0:02:59.5]} 12. Bf4 {[%clk 0:02:59.9]} 12...
Ne8 {[%clk 0:02:59.3]} 13. Re1 {[%clk 0:02:59.2]} 13... a6 {[%clk 0:02:58.4]}
14. a4 {[%clk 0:02:59.1]} 14... Qc7 {[%clk 0:02:58]} 15. Nd2 {[%clk 0:02:51]}
15... Ne5 {[%clk 0:02:58.1]} 16. Bf1 {[%clk 0:02:46.9]} 16... Rd8 {[%clk
0:02:52.8]} 17. Bh2 {[%clk 0:02:47.1]} 17... h6 {[%clk 0:02:49.8]} 18. f4 {[%clk
0:02:47]} 18... Nd7 {[%clk 0:02:50.4]} 19. Nc4 {[%clk 0:02:46]} 19... Ba8 {[%clk
0:02:49.7]} 20. Kh1 {[%clk 0:02:42]} 20... Qb8 {[%clk 0:02:48.1]} 21. Ne3 {[%clk
0:02:36.2]} 21... Nef6 {[%clk 0:02:44.2]} 22. Bxa6 {[%clk 0:02:34.4]} 22... Rfe8
{[%clk 0:02:41.4]} 23. Bd3 {[%clk 0:02:31.2]} 23... Nh7 {[%clk 0:02:34.6]} 24.
Nc4 {[%clk 0:02:30.6]} 24... Qc7 {[%clk 0:02:31.1]} 25. Nb5 {[%clk 0:02:30.4]}
25... Qb8 {[%clk 0:02:31.3]} 26. Nbxd6 {[%clk 0:02:26.1]} 26... Rf8 {[%clk
0:02:31.2]} 27. Bc2 {[%clk 0:02:18.9]} 27... f5 {[%clk 0:02:30]} 28. e5 {[%clk
0:02:13.5]} 28... g5 {[%clk 0:02:28.8]} 29. Bxf5 {[%clk 0:02:11.5]} 29... gxf4
{[%clk 0:02:24]} 30. Bxf4 {[%clk 0:01:55.6]} 30... Ng5 {[%clk 0:02:09.3]} 31.
Qg4 {[%clk 0:01:48.3]} 31... Bxd5 {[%clk 0:02:02.4]} 32. Bxd7 {[%clk 0:01:45.6]}
32... Rxf4 {[%clk 0:01:52]} 33. Qxf4 {[%clk 0:01:38.7]} 33... Rxd7 {[%clk
0:01:52.4]} 34. Rad1 {[%clk 0:01:27.1]} 34... Be6 {[%clk 0:01:33.4]} 35. h4
{[%clk 0:01:16.9]} 35... Nf7 {[%clk 0:01:33.1]} 36. Nf5 {[%clk 0:01:10.7]} 36...
Rxd1 {[%clk 0:01:25.6]} 37. Rxd1 {[%clk 0:01:10.7]} 37... Bxc4 {[%clk
0:01:17.6]} 38. Nxg7 {[%clk 0:00:47.8]} 38... Kxg7 {[%clk 0:01:10.8]} 39. Qxc4
{[%clk 0:00:45.1]} 39... Qxe5 {[%clk 0:01:08.4]} 40. Qg4+ {[%clk 0:00:44.1]}
40... Kf8 {[%clk 0:01:08.1]} 41. Rf1 {[%clk 0:00:38.7]} 41... Qxb2 {[%clk
0:01:01.4]} 42. Qe6 {[%clk 0:00:35.6]} 42... Qg7 {[%clk 0:00:59.8]} 43. Qxb6
{[%clk 0:00:33.9]} 43... Qd4 {[%clk 0:00:47.5]} 44. Qf6 {[%clk 0:00:28.5]} 44...
Qd5 {[%clk 0:00:38.5]} 45. Qxh6+ {[%clk 0:00:26]} 45... Ke7 {[%clk 0:00:38.2]}
46. Qf6+ {[%clk 0:00:26]} 46... Kf8 {[%clk 0:00:36.1]} 47. a5 {[%clk 0:00:25.1]}
47... c4 {[%clk 0:00:36.4]} 48. a6 {[%clk 0:00:24.2]} 48... c3 {[%clk
0:00:34.1]} 49. Qxc3 {[%clk 0:00:23.5]} 49... Qe4 {[%clk 0:00:32]} 50. Qf6
{[%clk 0:00:22.1]} 1-0

[Event "Early-Titled-Tuesday-Blitz-March-12-2024"]
[Site "Chess.com"]
[Date "2024.03.12"]
[Round "4"]
[White "alexrustemov"]
[Black "sergoy"]
[Result "0-1"]
[WhiteElo "2861"]
[BlackElo "3013"]
[TimeControl "180+1"]
[EndTime "8:39:35 PDT"]
[Termination "sergoy won on time"]

1. d4 {[%clk 0:03:00.9]} 1... Nf6 {[%clk 0:03:00]} 2. c4 {[%clk 0:03:00.9]} 2...
e6 {[%clk 0:02:59.9]} 3. Nf3 {[%clk 0:03:01.5]} 3... d5 {[%clk 0:03:00]} 4. cxd5
{[%clk 0:03:01.7]} 4... exd5 {[%clk 0:03:00.1]} 5. Bg5 {[%clk 0:03:01.5]} 5...
c6 {[%clk 0:02:57.8]} 6. Nc3 {[%clk 0:03:01.1]} 6... Be7 {[%clk 0:02:56.9]} 7.
Qc2 {[%clk 0:03:00.9]} 7... g6 {[%clk 0:02:57.3]} 8. e3 {[%clk 0:02:57.6]} 8...
Bf5 {[%clk 0:02:57.4]} 9. Bd3 {[%clk 0:02:55.8]} 9... Bxd3 {[%clk 0:02:57.8]}
10. Qxd3 {[%clk 0:02:56.4]} 10... Nbd7 {[%clk 0:02:58.4]} 11. Bh6 {[%clk
0:02:54.4]} 11... Bd6 {[%clk 0:02:40.3]} 12. Bg7 {[%clk 0:02:47.7]} 12... Rg8
{[%clk 0:02:38.9]} 13. Bxf6 {[%clk 0:02:48]} 13... Nxf6 {[%clk 0:02:36.9]} 14.
h3 {[%clk 0:02:40]} 14... Qe7 {[%clk 0:02:36.4]} 15. O-O-O {[%clk 0:02:30.9]}
15... Ne4 {[%clk 0:02:34.4]} 16. Qc2 {[%clk 0:02:25.7]} 16... f5 {[%clk
0:02:33.5]} 17. Kb1 {[%clk 0:02:16]} 17... Qe6 {[%clk 0:02:13.6]} 18. g3 {[%clk
0:02:07.2]} 18... O-O-O {[%clk 0:02:12.4]} 19. h4 {[%clk 0:02:06.4]} 19... h6
{[%clk 0:02:11]} 20. Ne1 {[%clk 0:01:50.3]} 20... Kb8 {[%clk 0:02:08.7]} 21. Nd3
{[%clk 0:01:49.5]} 21... g5 {[%clk 0:02:09.1]} 22. hxg5 {[%clk 0:01:48]} 22...
hxg5 {[%clk 0:02:10]} 23. Ne2 {[%clk 0:01:31.8]} 23... Rh8 {[%clk 0:02:01.2]}
24. a3 {[%clk 0:01:31.6]} 24... Qf6 {[%clk 0:01:51.5]} 25. Rdg1 {[%clk
0:01:29.6]} 25... a6 {[%clk 0:01:47.5]} 26. Qd1 {[%clk 0:01:27.2]} 26... Qg6
{[%clk 0:01:40.4]} 27. Ka2 {[%clk 0:01:25.2]} 27... Qe6 {[%clk 0:01:39.1]} 28.
Rxh8 {[%clk 0:01:22.9]} 28... Rxh8 {[%clk 0:01:38.9]} 29. Rh1 {[%clk 0:01:23.1]}
29... Qf6 {[%clk 0:01:33.1]} 30. Qg1 {[%clk 0:01:20.2]} 30... Rh6 {[%clk
0:01:27.7]} 31. Rxh6 {[%clk 0:01:15.9]} 31... Qxh6 {[%clk 0:01:27.7]} 32. f3
{[%clk 0:01:14]} 32... Nd2 {[%clk 0:01:26.9]} 33. Qf2 {[%clk 0:01:03.4]} 33...
Qh1 {[%clk 0:01:24.6]} 34. Ng1 {[%clk 0:00:59.6]} 34... Nc4 {[%clk 0:01:24.3]}
35. f4 {[%clk 0:00:59.4]} 35... g4 {[%clk 0:01:23.9]} 36. Ne5 {[%clk 0:00:57.8]}
36... Qe4 {[%clk 0:01:14.7]} 37. Nxc4 {[%clk 0:00:49.8]} 37... dxc4 {[%clk
0:01:15.6]} 38. Ne2 {[%clk 0:00:45.2]} 38... Qf3 {[%clk 0:01:15.5]} 39. Qh2
{[%clk 0:00:31.5]} 39... Qxe3 {[%clk 0:01:15.7]} 40. Nc3 {[%clk 0:00:27.4]}
40... Qxd4 {[%clk 0:01:13.4]} 41. Qh5 {[%clk 0:00:23.4]} 41... Qd3 {[%clk
0:01:12.7]} 42. Qe8+ {[%clk 0:00:19.5]} 42... Ka7 {[%clk 0:01:12.8]} 43. Qe6
{[%clk 0:00:17.8]} 43... Bc5 {[%clk 0:01:04]} 44. Qe5 {[%clk 0:00:16.4]} 44...
Bd4 {[%clk 0:01:01.4]} 45. Qd6 {[%clk 0:00:09.7]} 45... Bxc3 {[%clk 0:00:58.8]}
46. Qc5+ {[%clk 0:00:09.8]} 46... Kb8 {[%clk 0:00:59.2]} 47. Qf8+ {[%clk
0:00:09.4]} 47... Kc7 {[%clk 0:00:59.7]} 48. Qe7+ {[%clk 0:00:08.6]} 48... Qd7
{[%clk 0:00:58.5]} 0-1

[Event "Early-Titled-Tuesday-Blitz-March-12-2024"]
[Site "Chess.com"]
[Date "2024.03.12"]
[Round "4"]
[White "SchmakAttack"]
[Black "Let_it_be_1"]
[Result "0-1"]
[WhiteElo "2808"]
[BlackElo "2623"]
[TimeControl "180+1"]
[EndTime "8:39:35 PDT"]
[Termination "Let_it_be_1 won on time"]

1. Nf3 {[%clk 0:03:00.9]} 1... d5 {[%clk 0:03:00.1]} 2. g3 {[%clk 0:03:00.8]}
2... e6 {[%clk 0:03:00.6]} 3. Bg2 {[%clk 0:03:00.2]} 3... Nf6 {[%clk 0:03:01.2]}
4. O-O {[%clk 0:03:00.2]} 4... Be7 {[%clk 0:03:01.8]} 5. c4 {[%clk 0:02:58.1]}
5... O-O {[%clk 0:03:02]} 6. b3 {[%clk 0:02:58.3]} 6... c5 {[%clk 0:03:01.5]} 7.
Bb2 {[%clk 0:02:57.3]} 7... dxc4 {[%clk 0:03:01.7]} 8. bxc4 {[%clk 0:02:57.4]}
8... Nc6 {[%clk 0:03:02.4]} 9. e3 {[%clk 0:02:56.4]} 9... Qc7 {[%clk 0:03:00]}
10. d4 {[%clk 0:02:55.9]} 10... cxd4 {[%clk 0:03:00]} 11. exd4 {[%clk
0:02:56.3]} 11... Na5 {[%clk 0:03:00.2]} 12. Na3 {[%clk 0:02:33]} 12... Bd7
{[%clk 0:01:46.7]} 13. Rc1 {[%clk 0:02:30]} 13... Rfd8 {[%clk 0:01:42.8]} 14.
Qe2 {[%clk 0:02:21.7]} 14... Rac8 {[%clk 0:01:40.6]} 15. Ne5 {[%clk 0:02:07.1]}
15... Be8 {[%clk 0:01:38.5]} 16. d5 {[%clk 0:01:45.1]} 16... Qb6 {[%clk
0:01:20.9]} 17. dxe6 {[%clk 0:01:11.4]} 17... Qxe6 {[%clk 0:01:19.8]} 18. Nb5
{[%clk 0:01:11.8]} 18... Nxc4 {[%clk 0:01:05.6]} 19. Nxa7 {[%clk 0:01:11.9]}
19... Ra8 {[%clk 0:00:50.8]} 20. Qxc4 {[%clk 0:00:48.9]} 20... Rxa7 {[%clk
0:00:46.9]} 21. Qxe6 {[%clk 0:00:45.5]} 21... fxe6 {[%clk 0:00:46.8]} 22. Bh3
{[%clk 0:00:34.1]} 22... Bf7 {[%clk 0:00:36.2]} 23. Rc7 {[%clk 0:00:32]} 23...
Nd5 {[%clk 0:00:33]} 24. Rc4 {[%clk 0:00:14.4]} 24... Rxa2 {[%clk 0:00:31.7]}
25. Bd4 {[%clk 0:00:15.1]} 25... Rd2 {[%clk 0:00:25.3]} 26. Bc5 {[%clk
0:00:08.2]} 26... Bf6 {[%clk 0:00:20]} 27. Nxf7 {[%clk 0:00:06.7]} 27... Kxf7
{[%clk 0:00:20.1]} 28. Re1 {[%clk 0:00:06.2]} 28... Re8 {[%clk 0:00:17.1]} 29.
Bd6 {[%clk 0:00:06.5]} 29... b5 {[%clk 0:00:14.1]} 30. Rc5 {[%clk 0:00:06.5]}
30... b4 {[%clk 0:00:13.5]} 31. Rb5 {[%clk 0:00:06.9]} 31... Bc3 {[%clk
0:00:12.2]} 32. Rb7+ {[%clk 0:00:04]} 32... Kf6 {[%clk 0:00:12.7]} 33. Rb1
{[%clk 0:00:03]} 33... Bd4 {[%clk 0:00:11]} 34. Rf1 {[%clk 0:00:01.4]} 34... Rc8
{[%clk 0:00:08.9]} 0-1

[Event "Early-Titled-Tuesday-Blitz-March-12-2024"]
[Site "Chess.com"]
[Date "2024.03.12"]
[Round "4"]
[White "ViIIagra"]
[Black "FairChess_on_YouTube"]
[Result "0-1"]
[WhiteElo "2922"]
[BlackElo "3131"]
[TimeControl "180+1"]
[EndTime "8:39:36 PDT"]
[Termination "FairChess_on_YouTube won on time"]

1. e4 {[%clk 0:02:54]} 1... c5 {[%clk 0:02:57.4]} 2. Nc3 {[%clk 0:02:53.6]} 2...
e6 {[%clk 0:02:56]} 3. g3 {[%clk 0:02:54.1]} 3... d5 {[%clk 0:02:46.7]} 4. d3
{[%clk 0:02:50.9]} 4... Nc6 {[%clk 0:02:45.5]} 5. Bg2 {[%clk 0:02:50.9]} 5... d4
{[%clk 0:02:45.1]} 6. Nce2 {[%clk 0:02:51]} 6... e5 {[%clk 0:02:45.7]} 7. f4
{[%clk 0:02:51.3]} 7... Bd6 {[%clk 0:02:45.4]} 8. Nf3 {[%clk 0:02:51.3]} 8...
Nge7 {[%clk 0:02:45.2]} 9. c3 {[%clk 0:02:49.1]} 9... O-O {[%clk 0:02:37.6]} 10.
O-O {[%clk 0:02:36.5]} 10... f6 {[%clk 0:02:27.1]} 11. fxe5 {[%clk 0:02:22.1]}
11... Bxe5 {[%clk 0:02:19.2]} 12. cxd4 {[%clk 0:02:13.7]} 12... Bxd4+ {[%clk
0:02:06.9]} 13. Nexd4 {[%clk 0:02:09]} 13... Nxd4 {[%clk 0:02:06.9]} 14. Be3
{[%clk 0:01:58.4]} 14... Nec6 {[%clk 0:01:58.2]} 15. Rc1 {[%clk 0:01:52.3]}
15... Nxf3+ {[%clk 0:01:37.1]} 16. Bxf3 {[%clk 0:01:37.1]} 16... Bh3 {[%clk
0:01:35.4]} 17. Rf2 {[%clk 0:01:16.7]} 17... b6 {[%clk 0:01:30.2]} 18. Qb3+
{[%clk 0:00:36.6]} 18... Kh8 {[%clk 0:01:28.5]} 19. Qd5 {[%clk 0:00:26.3]} 19...
Ne5 {[%clk 0:01:14.5]} 20. d4 {[%clk 0:00:12.1]} 20... cxd4 {[%clk 0:00:57.2]}
21. Bxd4 {[%clk 0:00:10.2]} 21... Nd3 {[%clk 0:00:57.2]} 22. Rd1 {[%clk
0:00:03.1]} 22... Nxf2 {[%clk 0:00:55]} 23. Kxf2 {[%clk 0:00:04]} 23... Qc7
{[%clk 0:00:30.3]} 24. Bc3 {[%clk 0:00:02.3]} 24... Rad8 {[%clk 0:00:27.3]} 25.
Qh5 {[%clk 0:00:02.7]} 25... Rxd1 {[%clk 0:00:26.3]} 26. Bxd1 {[%clk 0:00:03.6]}
26... Be6 {[%clk 0:00:22.9]} 27. a3 {[%clk 0:00:04.3]} 27... Bf7 {[%clk
0:00:20.1]} 28. Qf3 {[%clk 0:00:04.1]} 28... Bg6 {[%clk 0:00:19.8]} 29. Bc2
{[%clk 0:00:03.9]} 29... Re8 {[%clk 0:00:19.7]} 30. Bd3 {[%clk 0:00:04.5]} 30...
Qc6 {[%clk 0:00:19.3]} 31. Ke3 {[%clk 0:00:04.4]} 31... Qc5+ {[%clk 0:00:19.6]}
32. Bd4 {[%clk 0:00:04.7]} 32... Qg5+ {[%clk 0:00:19.7]} 33. Qf4 {[%clk
0:00:04.5]} 33... Qh5 {[%clk 0:00:17.7]} 34. h4 {[%clk 0:00:04.9]} 34... Bxe4
{[%clk 0:00:15]} 35. Bxe4 {[%clk 0:00:01]} 35... f5 {[%clk 0:00:15.5]} 0-1

[Event "Early-Titled-Tuesday-Blitz-March-12-2024"]
[Site "Chess.com"]
[Date "2024.03.12"]
[Round "4"]
[White "awesomevishesh"]
[Black "ccccvhhhj"]
[Result "1-0"]
[WhiteElo "2643"]
[BlackElo "2456"]
[TimeControl "180+1"]
[EndTime "8:39:36 PDT"]
[Termination "awesomevishesh won by resignation"]

1. a3 {[%clk 0:03:00.1]} 1... d5 {[%clk 0:02:57.5]} 2. d4 {[%clk 0:02:58.8]}
2... Nf6 {[%clk 0:02:54.5]} 3. Nf3 {[%clk 0:02:58.1]} 3... Bf5 {[%clk 0:02:54]}
4. Bf4 {[%clk 0:02:56.1]} 4... e6 {[%clk 0:02:52.3]} 5. e3 {[%clk 0:02:54.8]}
5... Bd6 {[%clk 0:02:52.9]} 6. Ne5 {[%clk 0:02:50.1]} 6... O-O {[%clk
0:02:50.8]} 7. Bd3 {[%clk 0:02:46.2]} 7... Bxd3 {[%clk 0:02:49.9]} 8. cxd3
{[%clk 0:02:45.8]} 8... c5 {[%clk 0:02:50.8]} 9. dxc5 {[%clk 0:02:43]} 9... Bxc5
{[%clk 0:02:48.9]} 10. d4 {[%clk 0:02:39.2]} 10... Be7 {[%clk 0:02:42.8]} 11.
Nc3 {[%clk 0:02:36.7]} 11... Nbd7 {[%clk 0:02:43.3]} 12. O-O {[%clk 0:02:35.6]}
12... Nxe5 {[%clk 0:02:42.5]} 13. dxe5 {[%clk 0:02:31.1]} 13... Nd7 {[%clk
0:02:40]} 14. e4 {[%clk 0:02:29.1]} 14... Nb6 {[%clk 0:02:18.1]} 15. exd5 {[%clk
0:02:22.1]} 15... exd5 {[%clk 0:02:18.5]} 16. Be3 {[%clk 0:01:49.8]} 16... Nc4
{[%clk 0:02:06]} 17. Nxd5 {[%clk 0:01:46]} 17... Nxe3 {[%clk 0:02:06.2]} 18.
Nxe3 {[%clk 0:01:43.6]} 18... Qa5 {[%clk 0:02:04.7]} 19. Nd5 {[%clk 0:01:37.1]}
19... Bg5 {[%clk 0:01:44.3]} 20. b4 {[%clk 0:01:34.2]} 20... Qd8 {[%clk
0:01:36.2]} 21. f4 {[%clk 0:01:28.3]} 21... Bh6 {[%clk 0:01:36.3]} 22. Qd3
{[%clk 0:01:14.5]} 22... a5 {[%clk 0:01:31.9]} 23. b5 {[%clk 0:01:14.1]} 23...
a4 {[%clk 0:01:29.5]} 24. f5 {[%clk 0:01:11.4]} 24... Qg5 {[%clk 0:01:26.3]} 25.
Rad1 {[%clk 0:00:51.1]} 25... Rfd8 {[%clk 0:00:58.2]} 26. e6 {[%clk 0:00:40.2]}
26... fxe6 {[%clk 0:00:54.6]} 27. fxe6 {[%clk 0:00:40.2]} 27... Kh8 {[%clk
0:00:32.4]} 28. e7 {[%clk 0:00:34.8]} 28... Rdc8 {[%clk 0:00:32.8]} 29. Kh1
{[%clk 0:00:32]} 29... Qh5 {[%clk 0:00:26]} 30. Nb6 {[%clk 0:00:27.9]} 30... Qe8
{[%clk 0:00:20.3]} 31. Nxa8 {[%clk 0:00:26.4]} 31... Rxa8 {[%clk 0:00:19.8]} 32.
Rf8+ {[%clk 0:00:26.1]} 32... Qxf8 {[%clk 0:00:20.3]} 33. exf8=Q+ {[%clk
0:00:26]} 33... Rxf8 {[%clk 0:00:21.2]} 34. g3 {[%clk 0:00:22.7]} 34... Bg5
{[%clk 0:00:20.8]} 35. Rf1 {[%clk 0:00:22.8]} 35... Bf6 {[%clk 0:00:20.7]} 36.
Kg2 {[%clk 0:00:22.5]} 36... h6 {[%clk 0:00:21.3]} 37. Rc1 {[%clk 0:00:22.3]}
37... Re8 {[%clk 0:00:20.5]} 38. Rc7 {[%clk 0:00:21.7]} 38... b6 {[%clk
0:00:19.9]} 39. Rc6 {[%clk 0:00:21.5]} 39... Rd8 {[%clk 0:00:17]} 40. Qxd8+
{[%clk 0:00:20.2]} 40... Bxd8 {[%clk 0:00:17.9]} 41. Rc8 {[%clk 0:00:20.4]} 1-0

[Event "Early-Titled-Tuesday-Blitz-March-12-2024"]
[Site "Chess.com"]
[Date "2024.03.12"]
[Round "4"]
[White "Sadykov_Ramil"]
[Black "Peng_Li-Min"]
[Result "0-1"]
[WhiteElo "2596"]
[BlackElo "2810"]
[TimeControl "180+1"]
[EndTime "8:39:39 PDT"]
[Termination "Peng_Li-Min won on time"]

1. e4 {[%clk 0:02:40.9]} 1... Nc6 {[%clk 0:02:57.3]} 2. Nf3 {[%clk 0:02:38.4]}
2... e5 {[%clk 0:02:50.3]} 3. Nc3 {[%clk 0:02:35.6]} 3... Nf6 {[%clk 0:02:47.8]}
4. d4 {[%clk 0:02:36.1]} 4... Bb4 {[%clk 0:02:44.9]} 5. d5 {[%clk 0:02:14.9]}
5... Ne7 {[%clk 0:02:33.6]} 6. Bd3 {[%clk 0:02:12.9]} 6... d6 {[%clk 0:02:23.3]}
7. h3 {[%clk 0:02:09.9]} 7... O-O {[%clk 0:02:09.7]} 8. a3 {[%clk 0:01:56.3]}
8... Bxc3+ {[%clk 0:01:19.5]} 9. bxc3 {[%clk 0:01:57.2]} 9... Nd7 {[%clk
0:01:19.2]} 10. c4 {[%clk 0:01:42.6]} 10... f5 {[%clk 0:01:09.1]} 11. exf5
{[%clk 0:01:37.6]} 11... Nc5 {[%clk 0:01:04.3]} 12. g4 {[%clk 0:01:02]} 12... e4
{[%clk 0:01:02.8]} 13. Bxe4 {[%clk 0:00:50.5]} 13... Nxe4 {[%clk 0:01:03.7]} 14.
Qd4 {[%clk 0:00:50.7]} 14... Bxf5 {[%clk 0:00:53.1]} 15. Bb2 {[%clk 0:00:47.2]}
15... Nf6 {[%clk 0:00:47.3]} 16. gxf5 {[%clk 0:00:46.1]} 16... Nxf5 {[%clk
0:00:48.2]} 17. Qd3 {[%clk 0:00:42.6]} 17... Qe8+ {[%clk 0:00:29.8]} 18. Kf1
{[%clk 0:00:19.4]} 18... Qh5 {[%clk 0:00:30.7]} 19. Re1 {[%clk 0:00:15.1]} 19...
Rf7 {[%clk 0:00:23.1]} 20. Re6 {[%clk 0:00:13.1]} 20... Raf8 {[%clk 0:00:21.6]}
21. Rg1 {[%clk 0:00:12.5]} 21... Qxh3+ {[%clk 0:00:10.8]} 22. Ke1 {[%clk
0:00:11.4]} 22... Nh5 {[%clk 0:00:08.2]} 23. Ng5 {[%clk 0:00:08.3]} 23... Qxd3
{[%clk 0:00:06.7]} 24. cxd3 {[%clk 0:00:09.2]} 24... Re7 {[%clk 0:00:05.5]} 25.
Rxe7 {[%clk 0:00:09.1]} 25... Nxe7 {[%clk 0:00:06.4]} 26. Ne6 {[%clk 0:00:09.2]}
26... Rf7 {[%clk 0:00:06.9]} 27. Nxc7 {[%clk 0:00:09.2]} 27... Nf5 {[%clk
0:00:06.3]} 28. Ne6 {[%clk 0:00:07.5]} 28... g6 {[%clk 0:00:05.6]} 29. Kd2
{[%clk 0:00:04.5]} 29... Nf4 {[%clk 0:00:06.5]} 30. Bc3 {[%clk 0:00:03.1]} 30...
Nh4 {[%clk 0:00:03.4]} 31. Bd4 {[%clk 0:00:02.1]} 31... Nf3+ {[%clk 0:00:04]}
32. Kc3 {[%clk 0:00:01.5]} 32... Nxg1 {[%clk 0:00:04.9]} 33. Ng5 {[%clk
0:00:01.3]} 33... Nge2+ {[%clk 0:00:05.3]} 0-1

[Event "Early-Titled-Tuesday-Blitz-March-12-2024"]
[Site "Chess.com"]
[Date "2024.03.12"]
[Round "4"]
[White "ValeriyGrinev"]
[Black "ViktoriyaTarasova"]
[Result "1-0"]
[WhiteElo "2567"]
[BlackElo "2300"]
[TimeControl "180+1"]
[EndTime "8:39:39 PDT"]
[Termination "ValeriyGrinev won on time"]

1. d4 {[%clk 0:03:00.9]} 1... Nf6 {[%clk 0:02:59.8]} 2. c4 {[%clk 0:03:00.7]}
2... e6 {[%clk 0:03:00]} 3. Nc3 {[%clk 0:02:59.9]} 3... Bb4 {[%clk 0:03:00]} 4.
e3 {[%clk 0:02:59.8]} 4... O-O {[%clk 0:02:59.2]} 5. Bd3 {[%clk 0:03:00.4]} 5...
d5 {[%clk 0:02:59]} 6. Nf3 {[%clk 0:03:00.2]} 6... dxc4 {[%clk 0:02:58.5]} 7.
Bxc4 {[%clk 0:02:59.7]} 7... c5 {[%clk 0:02:58.8]} 8. O-O {[%clk 0:02:59.5]}
8... cxd4 {[%clk 0:02:58.7]} 9. exd4 {[%clk 0:02:59.7]} 9... b6 {[%clk
0:02:58.4]} 10. Bg5 {[%clk 0:02:59.9]} 10... Bb7 {[%clk 0:02:58.4]} 11. Rc1
{[%clk 0:02:52.8]} 11... Nbd7 {[%clk 0:02:58.2]} 12. Qe2 {[%clk 0:02:51]} 12...
Rc8 {[%clk 0:02:52.6]} 13. Bb3 {[%clk 0:02:46.8]} 13... h6 {[%clk 0:02:48.3]}
14. Bh4 {[%clk 0:02:45.1]} 14... Bxc3 {[%clk 0:02:24.1]} 15. bxc3 {[%clk
0:02:42.1]} 15... Qe7 {[%clk 0:02:22.9]} 16. Rfd1 {[%clk 0:02:28.2]} 16... a6
{[%clk 0:02:08.6]} 17. d5 {[%clk 0:02:26.6]} 17... Nc5 {[%clk 0:02:00.3]} 18. d6
{[%clk 0:02:25.9]} 18... Qd7 {[%clk 0:02:00.1]} 19. Ne5 {[%clk 0:02:25.1]} 19...
Qd8 {[%clk 0:01:53.6]} 20. Bc2 {[%clk 0:02:10.3]} 20... g5 {[%clk 0:01:39.8]}
21. Bg3 {[%clk 0:02:08.6]} 21... Be4 {[%clk 0:01:39.8]} 22. d7 {[%clk
0:02:04.1]} 22... Rc7 {[%clk 0:01:32.1]} 23. Nxf7 {[%clk 0:01:55.8]} 23... Kxf7
{[%clk 0:01:25.8]} 24. Bxc7 {[%clk 0:01:54.4]} 24... Qxc7 {[%clk 0:01:26]} 25.
Bxe4 {[%clk 0:01:54.2]} 25... Ncxe4 {[%clk 0:01:16.2]} 26. Qxa6 {[%clk
0:01:39.5]} 26... Rd8 {[%clk 0:01:12.1]} 27. Rb1 {[%clk 0:01:35.8]} 27... Rxd7
{[%clk 0:00:47.7]} 28. Rxd7+ {[%clk 0:01:31.4]} 28... Nxd7 {[%clk 0:00:45.4]}
29. Qd3 {[%clk 0:01:27.8]} 29... Nef6 {[%clk 0:00:44.4]} 30. h4 {[%clk
0:01:22.8]} 30... Qc5 {[%clk 0:00:33.5]} 31. hxg5 {[%clk 0:01:21.2]} 31... hxg5
{[%clk 0:00:34]} 32. Rb5 {[%clk 0:01:13.4]} 32... Qa3 {[%clk 0:00:30.8]} 33. Qc2
{[%clk 0:01:05.6]} 33... g4 {[%clk 0:00:21.9]} 34. Rg5 {[%clk 0:01:05.2]} 34...
Nf8 {[%clk 0:00:12.1]} 35. c4 {[%clk 0:00:47.8]} 35... Qd6 {[%clk 0:00:11.9]}
36. c5 {[%clk 0:00:43.6]} 36... bxc5 {[%clk 0:00:11.2]} 37. Rxc5 {[%clk
0:00:42.3]} 37... Qd4 {[%clk 0:00:11.2]} 38. Rc7+ {[%clk 0:00:36.8]} 38... Kg8
{[%clk 0:00:10.4]} 39. g3 {[%clk 0:00:36.2]} 39... Qa1+ {[%clk 0:00:09.4]} 40.
Kg2 {[%clk 0:00:36.2]} 40... Qe5 {[%clk 0:00:09.2]} 41. Qd3 {[%clk 0:00:31.6]}
41... Qd5+ {[%clk 0:00:06.3]} 42. Qxd5 {[%clk 0:00:31.6]} 42... Nxd5 {[%clk
0:00:06.9]} 43. Rb7 {[%clk 0:00:32]} 43... Ng6 {[%clk 0:00:03.3]} 44. a4 {[%clk
0:00:31.7]} 44... Ne5 {[%clk 0:00:03.4]} 45. a5 {[%clk 0:00:31.6]} 1-0